[Event "26th OIBM 2023"]
[Site "Gmund am Tegernsee"]
[Date "2023.11.01"]
[Round "5.17"]
[White "Hedke, Fred"]
[Black "Meins, Gerlef"]
[Result "0-1"]
[ECO "B22"]
[WhiteElo "2231"]
[BlackElo "2412"]
[Annotator "ChessBase"]
[PlyCount "72"]
[EventDate "2023.10.04"]
[EventType "swiss"]
[EventCountry "GER"]
[SourceTitle "playchess.com"]
[Source "ChessBase"]
[SourceQuality "1"]
[TimeControl "40/5400+30:1800+30"]

1. e4 {[%emt 0:00:17]} c5 {[%emt 0:00:09]} 2. c3 {[%emt 0:00:38]} d5 {[%emt 0:01:08]} 3. exd5 {[%emt 0:00:28]} Qxd5 {[%emt 0:00:07]} 4. d4 {[%emt 0:00:40]} Nf6 {[%emt 0:00:20]} 5. Nf3 {[%emt 0:01:55]} Bg4 {[%emt 0:01:21]} 6. Be2 {[%emt 0:00:31]} e6 {[%emt 0:00:38]} 7. h3 {[%emt 0:02:46]} Bh5 {[%emt 0:01:03]} 8. c4 {[%emt 0:07:38]} Qd8 {[%emt 0:06:57]} 9. Nc3 {[%emt 0:08:31]} cxd4 {[%emt 0:07:44]} 10. Qxd4 {[%emt 0:02:34]} Nc6 {[%emt 0:02:16]} 11. Qxd8+ {[%emt 0:03:05]} Rxd8 {[%emt 0:00:18]} 12. a3 {[%emt 0:05:02]} Nd7 {[%emt 0:30:06]} 13. O-O {[%emt 0:08:13]} Bxf3 {[%emt 0:07:08]} 14. Bxf3 {[%emt 0:00:39]} Nde5 {[%emt 0:00:10]} 15. Bxc6+ {[%emt 0:05:25]} bxc6 {[%emt 0:01:53]} 16. b3 {[%emt 0:13:55]} Bc5 {[%emt 0:02:38]} 17. Bb2 {[%emt 0:04:42]} Nd3 {[%emt 0:13:27]} 18. Na4 {[%emt 0:01:21]} Bd4 {[%emt 0:01:35]} 19. Bxd4 {[%emt 0:04:27]} Rxd4 {[%emt 0:00:04]} 20. Rfd1 {[%emt 0:01:24]} e5 {[%emt 0:00:47]} 21. Kf1 {[%emt 0:07:16]} Ke7 {[%emt 0:00:57]} 22. g3 {[%emt 0:02:40]} Rhd8 {[%emt 0:10:23]} 23. Rab1 {[%emt 0:05:20]} f5 {[%emt 0:01:08]} 24. Ke2 {[%emt 0:03:57]} g5 {[%emt 0:01:36]} 25. Nb2 {[%emt 0:06:30]} Nc5 {[%emt 0:03:27]} 26. Rxd4 {[%emt 0:00:38]} Rxd4 {[%emt 0:00:28]} 27. Nd1 {[%emt 0:00:24]} Ne4 {[%emt 0:00:35]} 28. Rb2 {[%emt 0:00:12]} Ke6 {[%emt 0:02:02]} 29. Rc2 {[%emt 0:00:10]} f4 {[%emt 0:01:57]} 30. Nc3 {[%emt 0:02:36]} fxg3 {[%emt 0:00:47]} 31. Nxe4 {[%emt 0:00:52]} Rxe4+ {[%emt 0:00:11]} 32. Kf3 {[%emt 0:00:08]} gxf2 {[%emt 0:00:15]} 33. Kxf2 {[%emt 0:00:05]} Rf4+ {[%emt 0:01:09]} 34. Kg2 {[%emt 0:00:10]} e4 {[%emt 0:00:45]} 35. b4 {[%emt 0:01:15]} Rf3 {[%emt 0:01:06]} 36. a4 {[%emt 0:00:38]} Ra3 {[%emt 0:00:34]} 0-1

[Event "26th OIBM 2023"]
[Site "Gmund am Tegernsee"]
[Date "2023.11.01"]
[Round "5.18"]
[White "Schachinger, Mario"]
[Black "Boehmer, Christian"]
[Result "1-0"]
[ECO "D31"]
[WhiteElo "2385"]
[BlackElo "2178"]
[Annotator "ChessBase"]
[PlyCount "51"]
[EventDate "2023.10.04"]
[EventType "swiss"]
[EventCountry "GER"]
[SourceTitle "playchess.com"]
[Source "ChessBase"]
[SourceQuality "1"]
[TimeControl "40/5400+30:1800+30"]

1. d4 {[%emt 0:00:07]} d5 {[%emt 0:00:17]} 2. c4 {[%emt 0:01:52]} e6 {[%emt 0:00:10]} 3. Nc3 {[%emt 0:02:06]} c6 {[%emt 0:00:42]} 4. e4 {[%emt 0:01:03]} dxe4 {[%emt 0:02:02]} 5. Nxe4 {[%emt 0:00:06]} Bb4+ {[%emt 0:00:56]} 6. Bd2 {[%emt 0:01:00]} Qxd4 {[%emt 0:01:53]} 7. Bxb4 {[%emt 0:00:08]} Qxe4+ {[%emt 0:00:07]} 8. Be2 {[%emt 0:00:13]} Na6 {[%emt 0:00:19]} 9. Bc3 {[%emt 0:03:58]} Ne7 {[%emt 0:05:59]} 10. Nf3 {[%emt 0:01:31]} O-O {[%emt 0:11:10]} 11. O-O {[%emt 0:05:01]} f6 {[%emt 0:05:32]} 12. Qd2 {[%emt 0:18:37]} c5 {[%emt 0:08:32]} 13. a3 {[%emt 0:04:28]} Nc6 {[%emt 0:08:02]} 14. Bd3 {[%emt 0:02:24]} Qg4 {[%emt 0:00:33]} 15. b4 {[%emt 0:00:54]} cxb4 {[%emt 0:12:01]} 16. axb4 {[%emt 0:00:10]} Rd8 {[%emt 0:00:17]} 17. Rfb1 {[%emt 0:17:05]} e5 {[%emt 0:09:18]} 18. Qc2 {[%emt 0:00:27]} Rxd3 {[%emt 0:02:46]} 19. Qxd3 {[%emt 0:00:09]} Bf5 {[%emt 0:05:37]} 20. Qd5+ {[%emt 0:00:57]} Be6 {[%emt 0:03:01]} 21. Qd2 {[%emt 0:10:44]} Rd8 {[%emt 0:00:21]} 22. Qe1 {[%emt 0:02:36]} Ne7 {[%emt 0:04:41]} 23. Rd1 {[%emt 0:07:23]} Rxd1 {[%emt 0:02:22]} 24. Rxd1 {[%emt 0:00:08]} Bxc4 {[%emt 0:00:35]} 25. Bxe5 {[%emt 0:00:41]} Bd5 {[%emt 0:01:12]} 26. Bxf6 {[%emt 0:03:28]} 1-0

[Event "26th OIBM 2023"]
[Site "Gmund am Tegernsee"]
[Date "2023.11.01"]
[Round "5.19"]
[White "Imnadze, Nato"]
[Black "Manish Anto Cristiano F"]
[Result "1/2-1/2"]
[ECO "D02"]
[WhiteElo "2207"]
[BlackElo "2368"]
[Annotator "ChessBase"]
[PlyCount "75"]
[EventDate "2023.10.04"]
[EventType "swiss"]
[EventCountry "GER"]
[SourceTitle "playchess.com"]
[Source "ChessBase"]
[SourceQuality "1"]
[TimeControl "40/5400+30:1800+30"]

1. d4 {[%emt 0:00:04]} Nf6 {[%emt 0:00:18]} 2. Nf3 {[%emt 0:00:06]} e6 {[%emt 0:00:39]} 3. Bf4 {[%emt 0:01:15]} c5 {[%emt 0:02:14]} 4. e3 {[%emt 0:01:52]} Nc6 {[%emt 0:00:38]} 5. Nbd2 {[%emt 0:01:38]} d5 {[%emt 0:02:15]} 6. c3 {[%emt 0:00:59]} h6 {[%emt 0:01:22]} 7. Bd3 {[%emt 0:03:17]} Nh5 {[%emt 0:01:59]} 8. Be5 {[%emt 0:06:22]} Be7 {[%emt 0:02:53]} 9. h3 {[%emt 0:04:00]} Nxe5 {[%emt 0:12:16]} 10. Nxe5 {[%emt 0:11:32]} Nf6 {[%emt 0:00:28]} 11. f4 {[%emt 0:03:55]} Bd7 {[%emt 0:05:15]} 12. O-O {[%emt 0:04:29]} O-O {[%emt 0:08:19]} 13. g4 {[%emt 0:06:30]} Be8 {[%emt 0:01:22]} 14. Kh1 {[%emt 0:09:15]} Nd7 {[%emt 0:01:29]} 15. Ndf3 {[%emt 0:01:57]} Nxe5 {[%emt 0:02:39]} 16. Nxe5 {[%emt 0:03:41]} f6 {[%emt 0:05:11]} 17. Ng6 {[%emt 0:01:30]} Bxg6 {[%emt 0:00:26]} 18. Bxg6 {[%emt 0:00:05]} Qd6 {[%emt 0:01:10]} 19. Bc2 {[%emt 0:08:42]} e5 {[%emt 0:04:50]} 20. dxc5 {[%emt 0:09:46]} Qxc5 {[%emt 0:01:26]} 21. Qd3 {[%emt 0:00:42]} e4 {[%emt 0:01:08]} 22. Qd2 {[%emt 0:00:03]} f5 {[%emt 0:03:37]} 23. b4 {[%emt 0:03:32]} Qd6 {[%emt 0:03:15]} 24. Rfd1 {[%emt 0:01:14]} Rad8 {[%emt 0:02:24]} 25. Bb3 {[%emt 0:09:04]} Qf6 {[%emt 0:04:32]} 26. Bxd5+ {[%emt 0:00:05]} Kh8 {[%emt 0:00:08]} 27. Qe1 {[%emt 0:00:20]} g5 {[%emt 0:03:06]} 28. Qg3 {[%emt 0:03:20]} fxg4 {[%emt 0:06:51]} 29. Bxe4 {[%emt 0:00:22]} gxf4 {[%emt 0:04:05]} 30. exf4 {[%emt 0:00:45]} gxh3 {[%emt 0:01:54]} 31. Rxd8 {[%emt 0:00:18]} Bxd8 {[%emt 0:00:49]} 32. Rg1 {[%emt 0:01:02]} Bc7 {[%emt 0:01:31]} 33. Qg6 {[%emt 0:01:32]} Qxg6 {[%emt 0:00:09]} 34. Rxg6 {[%emt 0:00:24]} Bxf4 {[%emt 0:01:17]} 35. Bxb7 {[%emt 0:00:18]} Bd2 {[%emt 0:04:24]} 36. Kh2 {[%emt 0:00:44]} Bxc3 {[%emt 0:00:20]} 37. Rxh6+ {[%emt 0:01:15]} Kg7 {[%emt 0:00:08]} 38. Rxh3 {[%emt 0:00:32]} 1/2-1/2

[Event "26th OIBM 2023"]
[Site "Gmund am Tegernsee"]
[Date "2023.11.01"]
[Round "5.20"]
[White "Brandt, Sebastian"]
[Black "Besou, Hussain"]
[Result "0-1"]
[ECO "E25"]
[WhiteElo "2188"]
[BlackElo "2351"]
[Annotator "ChessBase"]
[PlyCount "150"]
[EventDate "2023.10.04"]
[EventType "swiss"]
[EventCountry "GER"]
[SourceTitle "playchess.com"]
[Source "ChessBase"]
[SourceQuality "1"]
[TimeControl "40/5400+30:1800+30"]

1. d4 {[%emt 0:00:02]} Nf6 {[%emt 0:00:06]} 2. c4 {[%emt 0:00:05]} e6 {[%emt 0:00:07]} 3. Nc3 {[%emt 0:00:32]} Bb4 {[%emt 0:00:08]} 4. f3 {[%emt 0:00:24]} c5 {[%emt 0:00:27]} 5. a3 {[%emt 0:00:15]} Bxc3+ {[%emt 0:00:57]} 6. bxc3 {[%emt 0:00:04]} d5 {[%emt 0:00:14]} 7. cxd5 {[%emt 0:00:42]} Nxd5 {[%emt 0:00:16]} 8. dxc5 {[%emt 0:00:27]} Nd7 {[%emt 0:06:04]} 9. e4 {[%emt 0:06:36]} N5f6 {[%emt 0:01:37]} 10. Be3 {[%emt 0:08:13]} Qa5 {[%emt 0:08:22]} 11. Qd4 {[%emt 0:01:25]} O-O {[%emt 0:02:11]} 12. Ne2 {[%emt 0:06:00]} e5 {[%emt 0:05:33]} 13. Qb4 {[%emt 0:00:20]} Qc7 {[%emt 0:00:11]} 14. c4 {[%emt 0:07:38]} Nb8 {[%emt 0:09:21]} 15. Nc3 {[%emt 0:15:10]} Nc6 {[%emt 0:04:15]} 16. Qb5 {[%emt 0:00:01]} Bd7 {[%emt 0:06:39]} 17. Nd5 {[%emt 0:06:32]} Nxd5 {[%emt 0:00:41]} 18. cxd5 {[%emt 0:00:01]} Nd4 {[%emt 0:00:09]} 19. Qc4 {[%emt 0:02:31]} Qa5+ {[%emt 0:11:39]} 20. Bd2 {[%emt 0:07:06]} Qd8 {[%emt 0:00:15]} 21. Be3 {[%emt 0:10:41]} Qa5+ {[%emt 0:16:16]} 22. Kf2 {[%emt 0:00:01]} f5 {[%emt 0:02:28]} 23. Bxd4 {[%emt 0:09:06]} exd4 {[%emt 0:02:46]} 24. Qxd4 {[%emt 0:04:16]} fxe4 {[%emt 0:00:43]} 25. Be2 {[%emt 0:00:39]} Rae8 {[%emt 0:02:12]} 26. Rhc1 {[%emt 0:05:53]} e3+ {[%emt 0:02:23]} 27. Kf1 {[%emt 0:00:19]} Bb5 {[%emt 0:05:16]} 28. Qb4 {[%emt 0:01:23]} Bxe2+ {[%emt 0:00:14]} 29. Kxe2 {[%emt 0:00:01]} Qa6+ {[%emt 0:00:16]} 30. Qc4 {[%emt 0:00:11]} Qg6 {[%emt 0:02:27]} 31. d6+ {[%emt 0:00:42]} Kh8 {[%emt 0:00:06]} 32. Qg4 {[%emt 0:01:54]} Qxg4 {[%emt 0:05:40]} 33. fxg4 {[%emt 0:00:01]} Rf2+ {[%emt 0:00:07]} 34. Kd3 {[%emt 0:00:07]} Rd2+ {[%emt 0:00:28]} 35. Kc3 {[%emt 0:00:58]} Rc8 {[%emt 0:02:04]} 36. Kb4 {[%emt 0:01:34]} e2 {[%emt 0:01:32]} 37. Re1 {[%emt 0:02:11]} Kg8 {[%emt 0:01:37]} 38. Rac1 {[%emt 0:02:52]} Kf7 {[%emt 0:00:37]} 39. Rc4 {[%emt 0:01:25]} Re8 {[%emt 0:00:52]} 40. Rf4+ {[%emt 0:01:33]} Kg6 {[%emt 0:00:33]} 41. Rf2 {[%emt 0:06:02]} Re3 {[%emt 0:21:23]} 42. Kc4 {[%emt 0:10:59]} h6 {[%emt 0:03:52]} 43. a4 {[%emt 0:01:01]} Re4+ {[%emt 0:01:12]} 44. Kc3 {[%emt 0:00:42]} Rd5 {[%emt 0:00:09]} 45. Rfxe2 {[%emt 0:02:30]} Rxc5+ {[%emt 0:00:20]} 46. Kb3 {[%emt 0:00:40]} Rd4 {[%emt 0:01:38]} 47. Re6+ {[%emt 0:01:16]} Kh7 {[%emt 0:00:58]} 48. Re7 {[%emt 0:03:02]} Rxd6 {[%emt 0:01:25]} 49. Rxb7 {[%emt 0:00:02]} a5 {[%emt 0:00:07]} 50. Re2 {[%emt 0:05:17]} Rd3+ {[%emt 0:00:38]} 51. Kb2 {[%emt 0:00:01]} Rd4 {[%emt 0:00:14]} 52. Kb3 {[%emt 0:00:48]} Rxg4 {[%emt 0:00:06]} 53. h3 {[%emt 0:01:37]} Rg3+ {[%emt 0:00:13]} 54. Kb2 {[%emt 0:00:19]} Rcg5 {[%emt 0:00:45]} 55. Rb5 {[%emt 0:01:08]} Rxg2 {[%emt 0:00:10]} 56. Rxg2 {[%emt 0:00:28]} Rxg2+ {[%emt 0:00:07]} 57. Kc3 {[%emt 0:00:13]} Rg3+ {[%emt 0:00:09]} 58. Kd4 {[%emt 0:01:00]} Rxh3 {[%emt 0:00:24]} 59. Rxa5 {[%emt 0:00:02]} h5 {[%emt 0:00:50]} 60. Re5 {[%emt 0:00:19]} Kh6 {[%emt 0:00:30]} 61. Re3 {[%emt 0:00:39]} Rh4+ {[%emt 0:00:20]} 62. Re4 {[%emt 0:00:00]} Rh1 {[%emt 0:00:08]} 63. a5 {[%emt 0:01:49]} Ra1 {[%emt 0:02:37]} 64. Re6+ {[%emt 0:00:10]} g6 {[%emt 0:00:23]} 65. Re5 {[%emt 0:01:25]} h4 {[%emt 0:00:21]} 66. Rb5 {[%emt 0:00:36]} g5 {[%emt 0:01:03]} 67. Ke4 {[%emt 0:00:07]} Kh5 {[%emt 0:00:29]} 68. Kf3 {[%emt 0:00:31]} Ra3+ {[%emt 0:00:05]} 69. Kg2 {[%emt 0:00:34]} h3+ {[%emt 0:00:20]} 70. Kh2 {[%emt 0:00:36]} Kh4 {[%emt 0:00:06]} 71. Rc5 {[%emt 0:01:17]} g4 {[%emt 0:00:10]} 72. Kg1 {[%emt 0:00:28]} Kg3 {[%emt 0:00:13]} 73. Rc1 {[%emt 0:00:54]} h2+ {[%emt 0:00:30]} 74. Kh1 {[%emt 0:00:13]} Kh3 {[%emt 0:00:05]} 75. a6 {[%emt 0:00:30]} g3 {[%emt 0:00:05]} 0-1

[Event "26th OIBM 2023"]
[Site "Gmund am Tegernsee"]
[Date "2023.11.01"]
[Round "5.21"]
[White "Zawadzka, Jolanta"]
[Black "Arnhold, Steffi"]
[Result "1-0"]
[ECO "B33"]
[WhiteElo "2342"]
[BlackElo "2142"]
[Annotator "ChessBase"]
[PlyCount "63"]
[EventDate "2023.10.04"]
[EventType "swiss"]
[EventCountry "GER"]
[SourceTitle "playchess.com"]
[Source "ChessBase"]
[SourceQuality "1"]
[TimeControl "40/5400+30:1800+30"]

1. e4 {[%emt 0:04:50]} c5 {[%emt 0:00:06]} 2. Nf3 {[%emt 0:00:05]} Nc6 {[%emt 0:00:12]} 3. d4 {[%emt 0:00:06]} cxd4 {[%emt 0:00:05]} 4. Nxd4 {[%emt 0:00:04]} Qb6 {[%emt 0:00:08]} 5. Nb3 {[%emt 0:00:25]} Nf6 {[%emt 0:00:28]} 6. Nc3 {[%emt 0:00:10]} e6 {[%emt 0:00:18]} 7. Qe2 {[%emt 0:00:43]} Be7 {[%emt 0:00:43]} 8. Be3 {[%emt 0:02:51]} Qc7 {[%emt 0:00:18]} 9. O-O-O {[%emt 0:01:59]} a6 {[%emt 0:00:39]} 10. f4 {[%emt 0:03:24]} d6 {[%emt 0:00:25]} 11. g4 {[%emt 0:00:37]} b5 {[%emt 0:00:49]} 12. g5 {[%emt 0:07:16]} Nd7 {[%emt 0:00:12]} 13. Kb1 {[%emt 0:00:12]} Nb6 {[%emt 0:01:10]} 14. Qf2 {[%emt 0:05:00]} Rb8 {[%emt 0:01:14]} 15. h4 {[%emt 0:05:10]} b4 {[%emt 0:06:26]} 16. Ne2 {[%emt 0:03:37]} a5 {[%emt 0:20:20]} 17. Ned4 {[%emt 0:04:26]} Nxd4 {[%emt 0:04:25]} 18. Nxd4 {[%emt 0:05:24]} Nc4 {[%emt 0:02:22]} 19. Bxc4 {[%emt 0:02:23]} Qxc4 {[%emt 0:00:20]} 20. f5 {[%emt 0:00:11]} e5 {[%emt 0:02:46]} 21. f6 {[%emt 0:01:33]} gxf6 {[%emt 0:08:51]} 22. gxf6 {[%emt 0:00:20]} Bf8 {[%emt 0:00:53]} 23. b3 {[%emt 0:01:10]} Qa6 {[%emt 0:06:52]} 24. Nf5 {[%emt 0:00:57]} Bxf5 {[%emt 0:02:17]} 25. Qxf5 {[%emt 0:00:13]} a4 {[%emt 0:02:50]} 26. Rh2 {[%emt 0:04:01]} Qc6 {[%emt 0:05:17]} 27. Rd5 {[%emt 0:03:25]} Rc8 {[%emt 0:02:44]} 28. bxa4 {[%emt 0:07:40]} Rg8 {[%emt 0:07:30]} 29. Rhd2 {[%emt 0:01:28]} Rg3 {[%emt 0:06:51]} 30. Bb6 {[%emt 0:06:07]} Qc3 {[%emt 0:14:57]} 31. Rxe5+ {[%emt 0:00:14]} dxe5 {[%emt 0:00:05]} 32. Qd7# {[%emt 0:30:29]} 1-0

[Event "26th OIBM 2023"]
[Site "Gmund am Tegernsee"]
[Date "2023.11.01"]
[Round "5.22"]
[White "Koehler, Christian Friedrich"]
[Black "Dolzhykova, Kateryna"]
[Result "1/2-1/2"]
[ECO "E91"]
[WhiteElo "2181"]
[BlackElo "2336"]
[Annotator "ChessBase"]
[PlyCount "91"]
[EventDate "2023.10.04"]
[EventType "swiss"]
[EventCountry "GER"]
[SourceTitle "playchess.com"]
[Source "ChessBase"]
[SourceQuality "1"]
[TimeControl "40/5400+30:1800+30"]

1. e4 {[%emt 0:00:03]} c5 {[%emt 0:00:05]} 2. Nf3 {[%emt 0:00:08]} d6 {[%emt 0:00:06]} 3. Bb5+ {[%emt 0:00:12]} Bd7 {[%emt 0:00:17]} 4. c4 {[%emt 0:00:17]} Nf6 {[%emt 0:00:50]} 5. Nc3 {[%emt 0:00:13]} g6 {[%emt 0:00:15]} 6. d4 {[%emt 0:00:18]} cxd4 {[%emt 0:00:05]} 7. Nxd4 {[%emt 0:00:05]} Bg7 {[%emt 0:00:18]} 8. O-O {[%emt 0:01:06]} O-O {[%emt 0:00:38]} 9. Bxd7 {[%emt 0:01:46]} Nfxd7 {[%emt 0:02:50]} 10. Be3 {[%emt 0:00:47]} Nc6 {[%emt 0:00:21]} 11. Rc1 {[%emt 0:06:35]} a6 {[%emt 0:00:58]} 12. b3 {[%emt 0:03:57]} Re8 {[%emt 0:05:59]} 13. Qd2 {[%emt 0:05:00]} Qa5 {[%emt 0:02:51]} 14. Nxc6 {[%emt 0:03:01]} bxc6 {[%emt 0:00:04]} 15. Rfd1 {[%emt 0:03:42]} f5 {[%emt 0:06:40]} 16. exf5 {[%emt 0:02:56]} Qxf5 {[%emt 0:00:34]} 17. Ne2 {[%emt 0:11:50]} Nf6 {[%emt 0:06:15]} 18. Ng3 {[%emt 0:01:04]} Qd7 {[%emt 0:00:52]} 19. Bg5 {[%emt 0:03:15]} Rad8 {[%emt 0:01:33]} 20. Qe3 {[%emt 0:04:46]} Ng4 {[%emt 0:06:36]} 21. Qe2 {[%emt 0:04:29]} h6 {[%emt 0:04:54]} 22. Be3 {[%emt 0:06:39]} Nxe3 {[%emt 0:01:02]} 23. Qxe3 {[%emt 0:03:16]} Kh7 {[%emt 0:00:23]} 24. b4 {[%emt 0:04:33]} d5 {[%emt 0:01:25]} 25. cxd5 {[%emt 0:02:27]} cxd5 {[%emt 0:00:06]} 26. Qb6 {[%emt 0:00:58]} Qa4 {[%emt 0:02:03]} 27. Qa5 {[%emt 0:06:21]} Qxa5 {[%emt 0:02:05]} 28. bxa5 {[%emt 0:00:02]} d4 {[%emt 0:02:40]} 29. Rc6 {[%emt 0:05:47]} Rd6 {[%emt 0:00:07]} 30. Rb6 {[%emt 0:00:58]} Rc8 {[%emt 0:03:04]} 31. Ne4 {[%emt 0:08:18]} Rdc6 {[%emt 0:00:05]} 32. Kf1 {[%emt 0:00:28]} Kg8 {[%emt 0:08:06]} 33. Ke2 {[%emt 0:00:51]} Kf7 {[%emt 0:00:10]} 34. Kd3 {[%emt 0:00:51]} Rc4 {[%emt 0:05:06]} 35. Rxa6 {[%emt 0:00:27]} Ra4 {[%emt 0:00:03]} 36. Rd2 {[%emt 0:01:28]} Rc1 {[%emt 0:00:43]} 37. Ra8 {[%emt 0:07:58]} Re1 {[%emt 0:00:58]} 38. Nc5 {[%emt 0:00:52]} Ra3+ {[%emt 0:03:03]} 39. Nb3 {[%emt 0:00:42]} Rc1 {[%emt 0:00:44]} 40. Ke4 {[%emt 0:01:19]} Rc4 {[%emt 0:00:44]} 41. Kd5 {[%emt 0:10:44]} Rca4 {[%emt 0:00:44]} 42. Nxd4 {[%emt 0:00:19]} Bxd4 {[%emt 0:02:15]} 43. Rxd4 {[%emt 0:00:15]} Rxa5+ {[%emt 0:00:05]} 44. Rxa5 {[%emt 0:00:10]} Rxa5+ {[%emt 0:00:01]} 45. Ke4 {[%emt 0:00:13]} Rxa2 {[%emt 0:00:04]} 46. Ke3 {[%emt 0:00:24]} 1/2-1/2

[Event "26th OIBM 2023"]
[Site "Gmund am Tegernsee"]
[Date "2023.11.01"]
[Round "5.23"]
[White "Chassard, Cedric"]
[Black "Ernst, Robert"]
[Result "1/2-1/2"]
[ECO "B48"]
[WhiteElo "2326"]
[BlackElo "2093"]
[Annotator "ChessBase"]
[PlyCount "53"]
[EventDate "2023.10.04"]
[EventType "swiss"]
[EventCountry "GER"]
[SourceTitle "playchess.com"]
[Source "ChessBase"]
[SourceQuality "1"]
[TimeControl "40/5400+30:1800+30"]

1. e4 {[%emt 0:00:05]} c5 {[%emt 0:00:11]} 2. Nf3 {[%emt 0:00:04]} e6 {[%emt 0:00:10]} 3. d4 {[%emt 0:00:04]} cxd4 {[%emt 0:00:10]} 4. Nxd4 {[%emt 0:00:05]} Nc6 {[%emt 0:00:15]} 5. Nc3 {[%emt 0:00:05]} Qc7 {[%emt 0:00:09]} 6. Be3 {[%emt 0:00:05]} a6 {[%emt 0:00:09]} 7. g4 {[%emt 0:00:17]} h6 {[%emt 0:01:08]} 8. h4 {[%emt 0:00:23]} Nf6 {[%emt 0:04:06]} 9. Nxc6 {[%emt 0:06:07]} Qxc6 {[%emt 0:10:02]} 10. Bg2 {[%emt 0:16:40]} Bb4 {[%emt 0:20:34]} 11. Bd4 {[%emt 0:04:39]} Nxe4 {[%emt 0:03:04]} 12. O-O {[%emt 0:06:44]} d5 {[%emt 0:02:07]} 13. Nxe4 {[%emt 0:02:21]} dxe4 {[%emt 0:00:02]} 14. Bxg7 {[%emt 0:22:50]} Rg8 {[%emt 0:01:15]} 15. Qd4 {[%emt 0:37:31]} Qd6 {[%emt 0:54:38]} 16. Qf6 {[%emt 0:00:00]} e5 {[%emt 0:00:30]} 17. g5 {[%emt 0:00:00]} hxg5 {[%emt 0:00:00]} 18. Qxg5 {[%emt 0:00:00]} Bd2 {[%emt 0:00:00]} 19. Bxe5 {[%emt 0:00:00]} Bxg5 {[%emt 0:00:00]} 20. Bxd6 {[%emt 0:00:00]} Bxh4 {[%emt 0:00:00]} 21. Rfe1 {[%emt 0:00:00]} f5 {[%emt 0:00:00]} 22. Kf1 {[%emt 0:00:00]} Be6 {[%emt 0:00:00]} 23. b3 {[%emt 0:00:00]} O-O-O {[%emt 0:00:00]} 24. Rad1 {[%emt 0:00:00]} Rd7 {[%emt 0:00:00]} 25. Bh3 {[%emt 0:00:00]} Rg6 {[%emt 0:00:00]} 26. Re3 {[%emt 0:00:00]} b6 {[%emt 0:00:00]} 27. Ke2 {[%emt 0:00:00]} 1/2-1/2

[Event "26th OIBM 2023"]
[Site "Gmund am Tegernsee"]
[Date "2023.11.01"]
[Round "5.24"]
[White "Dorendorf, Hagen"]
[Black "Lavrencic, Matic"]
[Result "0-1"]
[ECO "E14"]
[WhiteElo "2175"]
[BlackElo "2319"]
[Annotator "ChessBase"]
[PlyCount "68"]
[EventDate "2023.10.04"]
[EventType "swiss"]
[EventCountry "GER"]
[SourceTitle "playchess.com"]
[Source "ChessBase"]
[SourceQuality "1"]
[TimeControl "40/5400+30:1800+30"]

1. d4 {[%emt 0:00:03]} Nf6 {[%emt 0:00:08]} 2. c4 {[%emt 0:00:14]} e6 {[%emt 0:00:06]} 3. Nf3 {[%emt 0:00:11]} d5 {[%emt 0:00:11]} 4. Nc3 {[%emt 0:00:08]} a6 {[%emt 0:00:08]} 5. e3 {[%emt 0:07:44]} Nbd7 {[%emt 0:00:28]} 6. a3 {[%emt 0:01:18]} b6 {[%emt 0:12:23]} 7. cxd5 {[%emt 0:07:04]} exd5 {[%emt 0:00:10]} 8. Bd3 {[%emt 0:01:04]} Bb7 {[%emt 0:00:23]} 9. O-O {[%emt 0:01:56]} Bd6 {[%emt 0:01:02]} 10. b4 {[%emt 0:06:38]} O-O {[%emt 0:03:18]} 11. Bb2 {[%emt 0:07:31]} Qe7 {[%emt 0:01:22]} 12. Re1 {[%emt 0:09:43]} Ne4 {[%emt 0:12:48]} 13. Bxe4 {[%emt 0:09:38]} dxe4 {[%emt 0:00:29]} 14. Nd2 {[%emt 0:00:13]} f5 {[%emt 0:17:57]} 15. Nc4 {[%emt 0:02:33]} Qf7 {[%emt 0:01:43]} 16. Nxd6 {[%emt 0:02:11]} cxd6 {[%emt 0:00:19]} 17. Ne2 {[%emt 0:05:17]} Bd5 {[%emt 0:02:46]} 18. Nf4 {[%emt 0:02:25]} b5 {[%emt 0:03:27]} 19. Nxd5 {[%emt 0:03:56]} Qxd5 {[%emt 0:00:09]} 20. Rc1 {[%emt 0:00:10]} Nb6 {[%emt 0:01:27]} 21. Rc7 {[%emt 0:01:08]} Nc4 {[%emt 0:01:04]} 22. Bc1 {[%emt 0:00:09]} Rf7 {[%emt 0:11:13]} 23. Rxf7 {[%emt 0:00:19]} Kxf7 {[%emt 0:02:02]} 24. Re2 {[%emt 0:03:27]} g6 {[%emt 0:06:18]} 25. Rc2 {[%emt 0:03:31]} Rc8 {[%emt 0:00:55]} 26. Qe2 {[%emt 0:02:16]} Rc6 {[%emt 0:00:19]} 27. g4 {[%emt 0:01:25]} Rc8 {[%emt 0:04:14]} 28. Rc3 {[%emt 0:01:41]} Qe6 {[%emt 0:01:23]} 29. g5 {[%emt 0:02:15]} Qe7 {[%emt 0:00:51]} 30. f4 {[%emt 0:00:46]} exf3 {[%emt 0:00:20]} 31. Qxf3 {[%emt 0:00:08]} Qxg5+ {[%emt 0:00:36]} 32. Kh1 {[%emt 0:00:18]} Qe7 {[%emt 0:00:34]} 33. Qd5+ {[%emt 0:00:59]} Kg7 {[%emt 0:00:23]} 34. Qg2 {[%emt 0:05:01]} Nxe3 {[%emt 0:01:46]} 0-1

[Event "26th OIBM 2023"]
[Site "Gmund am Tegernsee"]
[Date "2023.11.01"]
[Round "5.25"]
[White "Salzmann, Peter"]
[Black "Unuk, Laura"]
[Result "0-1"]
[ECO "D46"]
[WhiteElo "2160"]
[BlackElo "2313"]
[Annotator "ChessBase"]
[PlyCount "44"]
[EventDate "2023.10.04"]
[EventType "swiss"]
[EventCountry "GER"]
[SourceTitle "playchess.com"]
[Source "ChessBase"]
[SourceQuality "1"]
[TimeControl "40/5400+30:1800+30"]

1. d4 {[%emt 0:00:12]} d5 {[%emt 0:00:16]} 2. e3 {[%emt 0:00:44]} Nf6 {[%emt 0:00:52]} 3. c4 {[%emt 0:00:09]} c6 {[%emt 0:02:13]} 4. Nc3 {[%emt 0:02:03]} e6 {[%emt 0:03:37]} 5. Nf3 {[%emt 0:06:10]} Nbd7 {[%emt 0:00:07]} 6. Bd3 {[%emt 0:01:27]} Bd6 {[%emt 0:04:37]} 7. e4 {[%emt 0:12:22]} dxc4 {[%emt 0:19:57]} 8. Bxc4 {[%emt 0:00:52]} b5 {[%emt 0:00:07]} 9. Bd3 {[%emt 0:08:43]} e5 {[%emt 0:03:49]} 10. O-O {[%emt 0:01:54]} O-O {[%emt 0:21:45]} 11. Bg5 {[%emt 0:08:23]} h6 {[%emt 0:00:15]} 12. Be3 {[%emt 0:00:51]} a6 {[%emt 0:03:41]} 13. dxe5 {[%emt 0:00:42]} Nxe5 {[%emt 0:01:21]} 14. Nxe5 {[%emt 0:06:14]} Bxe5 {[%emt 0:00:33]} 15. h3 {[%emt 0:01:08]} Re8 {[%emt 0:07:03]} 16. Qc2 {[%emt 0:00:52]} Bb7 {[%emt 0:02:25]} 17. Ne2 {[%emt 0:00:12]} c5 {[%emt 0:08:02]} 18. Bxc5 {[%emt 0:04:43]} Nxe4 {[%emt 0:01:45]} 19. Rad1 {[%emt 0:00:34]} Qf6 {[%emt 0:03:09]} 20. Ba3 {[%emt 0:03:04]} Rac8 {[%emt 0:00:59]} 21. Qb1 {[%emt 0:00:32]} Nd2 {[%emt 0:02:59]} 22. Rxd2 {[%emt 0:05:29]} Qg5 {[%emt 0:11:58]} 0-1